Workbook

Sheet Sheet1
A1: 附件1
A2: 铜仁市2023年上半年事业单位公开招聘应征入伍大学毕业生考试总成绩及排名
A3: 序号 | B3: 姓名 | C3: 性别 | D3: 准考证号 | E3: 所属报名点 | F3: 报考单位代码 | G3: 报考单位名称 | H3: 岗位代码 | I3: 岗位名称 | J3: 笔试成绩 | K3: 折合笔试成绩（60%） | L3: 面试成绩 | M3: 折合面试成绩 （40%） | N3: 总成绩 | O3: 排名 | P3: 拟签约 | Q3: 备注
A4: 1 | B4: 王勇 | C4: 男 | D4: 1152220100310 | E4: 碧江区 | F4: 01 | G4: 碧江区下属乡镇事业单位 | H4: 0101 | I4: 工作人员 | J4: 74.2 | K4: =J4*60% -> 44.52 | L4: 80.77 | M4: 32.31 | N4: =K4+M4 -> 76.83 | O4: 1 | P4: 是
A5: 2 | B5: 陈瑶 | C5: 男 | D5: 1152220100408 | E5: 碧江区 | F5: 01 | G5: 碧江区下属乡镇事业单位 | H5: 0101 | I5: 工作人员 | J5: 75.1 | K5: 45.06 | L5: 78.17 | M5: 31.27 | N5: 76.33 | O5: 2 | P5: 是
A6: 3 | B6: 刘福海 | C6: 男 | D6: 1152220101018 | E6: 碧江区 | F6: 01 | G6: 碧江区下属乡镇事业单位 | H6: 0101 | I6: 工作人员 | J6: 72.95 | K6: 43.77 | L6: 78.40 | M6: 31.36 | N6: 75.13 | O6: 3 | P6: 是
A7: 4 | B7: 高健 | C7: 男 | D7: 1152220101218 | E7: 碧江区 | F7: 01 | G7: 碧江区下属乡镇事业单位 | H7: 0101 | I7: 工作人员 | J7: 74.2 | K7: 44.52 | L7: 75.32 | M7: 30.13 | N7: 74.65 | O7: 4 | P7: 是
A8: 5 | B8: 唐有福 | C8: 男 | D8: 1152220101417 | E8: 碧江区 | F8: 01 | G8: 碧江区下属乡镇事业单位 | H8: 0101 | I8: 工作人员 | J8: 70.6 | K8: 42.36 | L8: 75.42 | M8: 30.17 | N8: 72.53 | O8: 5
A9: 6 | B9: 杨凌江 | C9: 男 | D9: 1152220101324 | E9: 碧江区 | F9: 01 | G9: 碧江区下属乡镇事业单位 | H9: 0101 | I9: 工作人员 | J9: =VLOOKUP(B9,[1]笔试成绩!$B:$I,8,FALSE) -> 66.5 | K9: 39.9 | L9: 70.03 | M9: =L9*40% -> 28.01 | N9: 67.91 | O9: 6
A10: 7 | B10: 冉思维 | C10: 男 | D10: 1152220100610 | E10: 碧江区 | F10: 01 | G10: 碧江区下属乡镇事业单位 | H10: 0101 | I10: 工作人员 | J10: 77.05 | K10: 46.23 | L10: 缺考 | M10: 0 | N10: 46.23 | Q10: 未被定兵
A11: 8 | B11: 付汇 | C11: 男 | D11: 1152220101501 | E11: 碧江区 | F11: 01 | G11: 碧江区下属乡镇事业单位 | H11: 0101 | I11: 工作人员 | J11: 74.3 | K11: 44.58 | L11: 缺考 | M11: 0 | N11: 44.58 | Q11: 未被定兵
A12: 9 | B12: 何江龙 | C12: 男 | D12: 1152220100406 | E12: 碧江区 | F12: 01 | G12: 碧江区下属乡镇事业单位 | H12: 0101 | I12: 工作人员 | J12: 69.45 | K12: 41.67 | L12: 缺考 | M12: 0 | N12: 41.67 | Q12: 未被定兵
A13: 10 | B13: 龙泽亮 | C13: 男 | D13: 1152220101101 | E13: 碧江区 | F13: 01 | G13: 碧江区下属乡镇事业单位 | H13: 0101 | I13: 工作人员 | J13: 69.3 | K13: 41.58 | L13: 缺考 | M13: 0 | N13: 41.58 | Q13: 未被定兵
A14: 11 | B14: 贺明松 | C14: 男 | D14: 1152220100424 | E14: 碧江区 | F14: 01 | G14: 碧江区下属乡镇事业单位 | H14: 0101 | I14: 工作人员 | J14: 68.3 | K14: 40.98 | L14: 缺考 | M14: 0 | N14: 40.98 | Q14: 未被定兵
A15: 12 | B15: 刘雳 | C15: 男 | D15: 1152220101409 | E15: 碧江区 | F15: 01 | G15: 碧江区下属乡镇事业单位 | H15: 0101 | I15: 工作人员 | J15: 65.55 | K15: 39.33 | L15: 0 | M15: 0 | N15: 39.33 | Q15: 未被定兵,面试成绩不计入总成绩
A16: 13 | B16: 饶维立 | C16: 男 | D16: 1152220100616 | E16: 万山区 | F16: 02 | G16: 万山区下属乡镇事业单位 | H16: 0201 | I16: 工作人员 | J16: 72.25 | K16: =J16*60% -> 43.35 | L16: 74.77 | M16: 29.91 | N16: =K16+M16 -> 73.26 | O16: 1 | P16: 是
A17: 14 | B17: 谢文凯 | C17: 男 | D17: 1152220100303 | E17: 万山区 | F17: 02 | G17: 万山区下属乡镇事业单位 | H17: 0201 | I17: 工作人员 | J17: 67.55 | K17: 40.53 | L17: 75.10 | M17: 30.04 | N17: 70.57 | O17: 2 | P17: 是
A18: 15 | B18: 严雪峰 | C18: 男 | D18: 1152220100116 | E18: 万山区 | F18: 02 | G18: 万山区下属乡镇事业单位 | H18: 0201 | I18: 工作人员 | J18: 64.2 | K18: 38.52 | L18: 74.17 | M18: 29.67 | N18: 68.19 | O18: 3
A19: 16 | B19: 杨义凯 | C19: 男 | D19: 1152220100722 | E19: 万山区 | F19: 02 | G19: 万山区下属乡镇事业单位 | H19: 0201 | I19: 工作人员 | J19: 64.75 | K19: 38.85 | L19: 73.10 | M19: 29.24 | N19: 68.09 | O19: 4
A20: 17 | B20: 赵玮 | C20: 男 | D20: 1152220101002 | E20: 万山区 | F20: 02 | G20: 万山区下属乡镇事业单位 | H20: 0201 | I20: 工作人员 | J20: 62.2 | K20: 37.32 | L20: 76.07 | M20: 30.43 | N20: 67.75 | O20: 5
A21: 18 | B21: 刘远有 | C21: 男 | D21: 1152220101711 | E21: 万山区 | F21: 02 | G21: 万山区下属乡镇事业单位 | H21: 0201 | I21: 工作人员 | J21: 59.6 | K21: 35.76 | L21: 75.53 | M21: 30.21 | N21: 65.97 | O21: 6
A22: 19 | B22: 杨龙沼 | C22: 男 | D22: 1152220101410 | E22: 松桃县 | F22: 03 | G22: 松桃县下属乡镇事业单位 | H22: 0301 | I22: 工作人员 | J22: 75.85 | K22: 45.51 | L22: 79.67 | M22: 31.87 | N22: 77.38 | O22: 1 | P22: 是
A23: 20 | B23: 王田 | C23: 男 | D23: 1152220101512 | E23: 松桃县 | F23: 03 | G23: 松桃县下属乡镇事业单位 | H23: 0301 | I23: 工作人员 | J23: 71.8 | K23: 43.08 | L23: 74.00 | M23: 29.60 | N23: 72.68 | O23: 2 | P23: 是
A24: 21 | B24: 黄前顺 | C24: 男 | D24: 1152220100630 | E24: 松桃县 | F24: 03 | G24: 松桃县下属乡镇事业单位 | H24: 0301 | I24: 工作人员 | J24: 64.8 | K24: 38.88 | L24: 80.17 | M24: 32.07 | N24: 70.95 | O24: 3 | P24: 是
A25: 22 | B25: 曾明荣 | C25: 男 | D25: 1152220101219 | E25: 松桃县 | F25: 03 | G25: 松桃县下属乡镇事业单位 | H25: 0301 | I25: 工作人员 | J25: 68.35 | K25: 41.01 | L25: 74.00 | M25: 29.60 | N25: 70.61 | O25: 4 | P25: 是
A26: 23 | B26: 符前明 | C26: 男 | D26: 1152220101130 | E26: 松桃县 | F26: 03 | G26: 松桃县下属乡镇事业单位 | H26: 0301 | I26: 工作人员 | J26: 65.85 | K26: 39.51 | L26: 75.50 | M26: 30.20 | N26: 69.71 | O26: 5 | P26: 是
A27: 24 | B27: 梁乾 | C27: 男 | D27: 1152220101222 | E27: 松桃县 | F27: 03 | G27: 松桃县下属乡镇事业单位 | H27: 0301 | I27: 工作人员 | J27: 66.35 | K27: 39.81 | L27: 73.03 | M27: 29.21 | N27: 69.02 | O27: 6 | P27: 是
A28: 25 | B28: 龙虎 | C28: 男 | D28: 1152220100716 | E28: 松桃县 | F28: 03 | G28: 松桃县下属乡镇事业单位 | H28: 0301 | I28: 工作人员 | J28: 62.55 | K28: 37.53 | L28: 78.33 | M28: 31.33 | N28: 68.86 | O28: 7 | P28: 是
A29: 26 | B29: 刘艺 | C29: 男 | D29: 1152220100203 | E29: 松桃县 | F29: 03 | G29: 松桃县下属乡镇事业单位 | H29: 0301 | I29: 工作人员 | J29: 67.75 | K29: 40.65 | L29: 70.33 | M29: 28.13 | N29: 68.78 | O29: 8 | P29: 是
A30: 27 | B30: 龙徐 | C30: 男 | D30: 1152220100429 | E30: 松桃县 | F30: 03 | G30: 松桃县下属乡镇事业单位 | H30: 0301 | I30: 工作人员 | J30: 64.1 | K30: 38.46 | L30: 74.33 | M30: 29.73 | N30: 68.19 | O30: 9 | P30: 是
A31: 28 | B31: 熊端 | C31: 男 | D31: 1152220100108 | E31: 松桃县 | F31: 03 | G31: 松桃县下属乡镇事业单位 | H31: 0301 | I31: 工作人员 | J31: 67.2 | K31: 40.32 | L31: 69.20 | M31: 27.68 | N31: 68.00 | O31: 10
A32: 29 | B32: 刘智 | C32: 男 | D32: 1152220100814 | E32: 松桃县 | F32: 03 | G32: 松桃县下属乡镇事业单位 | H32: 0301 | I32: 工作人员 | J32: 63.6 | K32: 38.16 | L32: 74.17 | M32: 29.67 | N32: 67.83 | O32: 11
A33: 30 | B33: 周华伟 | C33: 男 | D33: 1152220100128 | E33: 松桃县 | F33: 03 | G33: 松桃县下属乡镇事业单位 | H33: 0301 | I33: 工作人员 | J33: 64.95 | K33: 38.97 | L33: 70.50 | M33: 28.20 | N33: 67.17 | O33: 12
A34: 31 | B34: 杨再林 | C34: 男 | D34: 1152220100305 | E34: 松桃县 | F34: 03 | G34: 松桃县下属乡镇事业单位 | H34: 0301 | I34: 工作人员 | J34: 61.5 | K34: 36.9 | L34: 74.33 | M34: 29.73 | N34: 66.63 | O34: 13
A35: 32 | B35: 高勇 | C35: 男 | D35: 1152220101912 | E35: 松桃县 | F35: 03 | G35: 松桃县下属乡镇事业单位 | H35: 0301 | I35: 工作人员 | J35: 62.35 | K35: 37.41 | L35: 70.83 | M35: 28.33 | N35: 65.74 | O35: 14
A36: 33 | B36: 滕涛 | C36: 男 | D36: 1152220101207 | E36: 松桃县 | F36: 03 | G36: 松桃县下属乡镇事业单位 | H36: 0301 | I36: 工作人员 | J36: 60.7 | K36: =J36*60% -> 36.42 | L36: 73.00 | M36: 29.20 | N36: 65.62 | O36: 15
A37: 34 | B37: 胡小勇 | C37: 男 | D37: 1152220101821 | E37: 松桃县 | F37: 03 | G37: 松桃县下属乡镇事业单位 | H37: 0301 | I37: 工作人员 | J37: 62.45 | K37: 37.47 | L37: 69.83 | M37: 27.93 | N37: =K37+M37 -> 65.40 | O37: 16
A38: 35 | B38: 曹淋 | C38: 男 | D38: 1152220100105 | E38: 松桃县 | F38: 03 | G38: 松桃县下属乡镇事业单位 | H38: 0301 | I38: 工作人员 | J38: 61.1 | K38: 36.66 | L38: 71.33 | M38: 28.53 | N38: 65.19 | O38: 17
A39: 36 | B39: 戴壮威 | C39: 男 | D39: 1152220100316 | E39: 松桃县 | F39: 03 | G39: 松桃县下属乡镇事业单位 | H39: 0301 | I39: 工作人员 | J39: 61.8 | K39: 37.08 | L39: 69.00 | M39: 27.60 | N39: 64.68 | O39: 18
A40: 37 | B40: 田钊鑫 | C40: 男 | D40: 1152220100801 | E40: 松桃县 | F40: 03 | G40: 松桃县下属乡镇事业单位 | H40: 0301 | I40: 工作人员 | J40: 60.55 | K40: 36.33 | L40: 68.83 | M40: 27.53 | N40: 63.86 | O40: 19
A41: 38 | B41: 雷乔生 | C41: 男 | D41: 1152220100711 | E41: 松桃县 | F41: 03 | G41: 松桃县下属乡镇事业单位 | H41: 0301 | I41: 工作人员 | J41: 60.7 | K41: 36.42 | L41: 66.67 | M41: 26.67 | N41: 63.09 | O41: 20
A42: 39 | B42: 许洪可 | C42: 男 | D42: 1152220101516 | E42: 松桃县 | F42: 03 | G42: 松桃县下属乡镇事业单位 | H42: 0301 | I42: 工作人员 | J42: 60.7 | K42: 36.42 | L42: 66.00 | M42: 26.40 | N42: 62.82 | O42: 21
A43: 40 | B43: 龙胜海 | C43: 男 | D43: 1152220101022 | E43: 松桃县 | F43: 03 | G43: 松桃县下属乡镇事业单位 | H43: 0301 | I43: 工作人员 | J43: 61.2 | K43: 36.72 | L43: 64.67 | M43: 25.87 | N43: 62.59 | O43: 22
A44: 41 | B44: 蔡河达 | C44: 男 | D44: 1152220100816 | E44: 松桃县 | F44: 03 | G44: 松桃县下属乡镇事业单位 | H44: 0301 | I44: 工作人员 | J44: 74.25 | K44: 44.55 | L44: 缺考 | M44: 0 | N44: 44.55 | Q44: 未被定兵
A45: 42 | B45: 田文刚 | C45: 男 | D45: 1152220100112 | E45: 松桃县 | F45: 03 | G45: 松桃县下属乡镇事业单位 | H45: 0301 | I45: 工作人员 | J45: 69.8 | K45: 41.88 | L45: 缺考 | M45: 0 | N45: 41.88 | Q45: 未被定兵
A46: 43 | B46: 谭礼渊 | C46: 男 | D46: 1152220101704 | E46: 松桃县 | F46: 03 | G46: 松桃县下属乡镇事业单位 | H46: 0301 | I46: 工作人员 | J46: 67.2 | K46: 40.32 | L46: 缺考 | M46: 0 | N46: 40.32 | Q46: 未被定兵
A47: 44 | B47: 石维英 | C47: 女 | D47: 1152220101729 | E47: 松桃县 | F47: 03 | G47: 松桃县下属乡镇事业单位 | H47: 0301 | I47: 工作人员 | J47: 64.7 | K47: 38.82 | L47: 缺考 | M47: 0 | N47: 38.82 | Q47: 未被定兵
A48: 45 | B48: 杨孟超 | C48: 男 | D48: 1152220101604 | E48: 松桃县 | F48: 03 | G48: 松桃县下属乡镇事业单位 | H48: 0301 | I48: 工作人员 | J48: 62.5 | K48: 37.5 | L48: 缺考 | M48: 0 | N48: 37.50 | Q48: 未被定兵
A49: 46 | B49: 杨宗哲 | C49: 男 | D49: 1152220101128 | E49: 玉屏县 | F49: 04 | G49: 玉屏县下属乡镇事业单位 | H49: 0401 | I49: 工作人员 | J49: 72.25 | K49: 43.35 | L49: 77.17 | M49: 30.87 | N49: 74.22 | O49: 1 | P49: 是
A50: 47 | B50: 吴俊 | C50: 男 | D50: 1152220101917 | E50: 玉屏县 | F50: 04 | G50: 玉屏县下属乡镇事业单位 | H50: 0401 | I50: 工作人员 | J50: 72.1 | K50: 43.26 | L50: 73.83 | M50: 29.53 | N50: 72.79 | O50: 2 | P50: 是
A51: 48 | B51: 洪潇 | C51: 男 | D51: 1152220100211 | E51: 玉屏县 | F51: 04 | G51: 玉屏县下属乡镇事业单位 | H51: 0401 | I51: 工作人员 | J51: 69.05 | K51: 41.43 | L51: 73.33 | M51: 29.33 | N51: 70.76 | O51: 3
A52: 49 | B52: 吴配灯 | C52: 男 | D52: 1152220100725 | E52: 玉屏县 | F52: 04 | G52: 玉屏县下属乡镇事业单位 | H52: 0401 | I52: 工作人员 | J52: 67.3 | K52: 40.38 | L52: 75.73 | M52: 30.29 | N52: 70.67 | O52: 4
A53: 50 | B53: 向术源 | C53: 男 | D53: 1152220100425 | E53: 玉屏县 | F53: 04 | G53: 玉屏县下属乡镇事业单位 | H53: 0401 | I53: 工作人员 | J53: 67.45 | K53: 40.47 | L53: 缺考 | M53: 0 | N53: 40.47 | Q53: 未被定兵
A54: 51 | B54: 万辉 | C54: 男 | D54: 1152220100205 | E54: 玉屏县 | F54: 04 | G54: 玉屏县下属乡镇事业单位 | H54: 0401 | I54: 工作人员 | J54: 64.24 | K54: 38.544 | L54: 缺考 | M54: 0 | N54: 38.54 | Q54: 未被定兵
A55: 52 | B55: 沈雪 | C55: 男 | D55: 1152220101314 | E55: 江口县 | F55: 05 | G55: 江口县下属乡镇事业单位 | H55: 0501 | I55: 工作人员 | J55: 84.25 | K55: 50.55 | L55: 70.07 | M55: 28.03 | N55: 78.58 | O55: 1 | P55: 是
A56: 53 | B56: 张钦 | C56: 男 | D56: 1152220101030 | E56: 江口县 | F56: 05 | G56: 江口县下属乡镇事业单位 | H56: 0501 | I56: 工作人员 | J56: 75.45 | K56: 45.27 | L56: 77.73 | M56: 31.09 | N56: 76.36 | O56: 2 | P56: 是
A57: 54 | B57: 曾令涛 | C57: 男 | D57: 1152220101315 | E57: 江口县 | F57: 05 | G57: 江口县下属乡镇事业单位 | H57: 0501 | I57: 工作人员 | J57: 64.75 | K57: 38.85 | L57: 75.50 | M57: 30.20 | N57: 69.05 | O57: 3 | P57: 是
A58: 55 | B58: 刘渊 | C58: 男 | D58: 1152220100106 | E58: 江口县 | F58: 05 | G58: 江口县下属乡镇事业单位 | H58: 0501 | I58: 工作人员 | J58: 64.95 | K58: 38.97 | L58: 71.57 | M58: 28.63 | N58: 67.60 | O58: 4
A59: 56 | B59: 杨东金 | C59: 男 | D59: 1152220101114 | E59: 江口县 | F59: 05 | G59: 江口县下属乡镇事业单位 | H59: 0501 | I59: 工作人员 | J59: 64.05 | K59: 38.43 | L59: 72.00 | M59: 28.80 | N59: 67.23 | O59: 5
A60: 57 | B60: 杨浪 | C60: 男 | D60: 1152220101605 | E60: 江口县 | F60: 05 | G60: 江口县下属乡镇事业单位 | H60: 0501 | I60: 工作人员 | J60: 72.35 | K60: 43.41 | L60: 缺考 | M60: 0 | N60: 43.41 | Q60: 未被定兵
A61: 58 | B61: 袁不才 | C61: 男 | D61: 1152220102008 | E61: 江口县 | F61: 05 | G61: 江口县下属乡镇事业单位 | H61: 0501 | I61: 工作人员 | J61: 67 | K61: 40.2 | L61: 缺考 | M61: 0 | N61: 40.20 | Q61: 未被定兵
A62: 59 | B62: 杨松睿 | C62: 男 | D62: 1152220100617 | E62: 江口县 | F62: 05 | G62: 江口县下属乡镇事业单位 | H62: 0501 | I62: 工作人员 | J62: 63.35 | K62: 38.01 | L62: 缺考 | M62: 0 | N62: 38.01 | Q62: 未被定兵
A63: 60 | B63: 谭俊 | C63: 男 | D63: 1152220100514 | E63: 江口县 | F63: 05 | G63: 江口县下属乡镇事业单位 | H63: 0501 | I63: 工作人员 | J63: 61.45 | K63: 36.87 | L63: 缺考 | M63: 0 | N63: 36.87 | Q63: 未被定兵
A64: 61 | B64: 彭海 | C64: 男 | D64: 1152220100508 | E64: 石阡县 | F64: 06 | G64: 石阡县下属乡镇事业单位 | H64: 0601 | I64: 工作人员 | J64: 70.65 | K64: 42.39 | L64: 79.77 | M64: 31.91 | N64: 74.30 | O64: 1 | P64: 是
A65: 62 | B65: 杨超 | C65: 男 | D65: 1152220100525 | E65: 石阡县 | F65: 06 | G65: 石阡县下属乡镇事业单位 | H65: 0601 | I65: 工作人员 | J65: 70.05 | K65: 42.03 | L65: 76.12 | M65: 30.45 | N65: 72.48 | O65: 2 | P65: 是
A66: 63 | B66: 卓樊 | C66: 男 | D66: 1152220100103 | E66: 石阡县 | F66: 06 | G66: 石阡县下属乡镇事业单位 | H66: 0601 | I66: 工作人员 | J66: 68.7 | K66: 41.22 | L66: 78.10 | M66: 31.24 | N66: 72.46 | O66: 3 | P66: 是
A67: 64 | B67: 袁培超 | C67: 男 | D67: 1152220101017 | E67: 石阡县 | F67: 06 | G67: 石阡县下属乡镇事业单位 | H67: 0601 | I67: 工作人员 | J67: 68.7 | K67: 41.22 | L67: 77.53 | M67: 31.01 | N67: 72.23 | O67: 4 | P67: 是
A68: 65 | B68: 陈涛 | C68: 男 | D68: 1152220101012 | E68: 石阡县 | F68: 06 | G68: 石阡县下属乡镇事业单位 | H68: 0601 | I68: 工作人员 | J68: 69.55 | K68: =J68*60% -> 41.73 | L68: 74.90 | M68: 29.96 | N68: 71.69 | O68: 5 | P68: 是
A69: 66 | B69: 任秋明 | C69: 男 | D69: 1152220100312 | E69: 石阡县 | F69: 06 | G69: 石阡县下属乡镇事业单位 | H69: 0601 | I69: 工作人员 | J69: 68.95 | K69: 41.37 | L69: 75.55 | M69: 30.22 | N69: =K69+M69 -> 71.59 | O69: 6 | P69: 是
A70: 67 | B70: 杨昌前 | C70: 男 | D70: 1152220101021 | E70: 石阡县 | F70: 06 | G70: 石阡县下属乡镇事业单位 | H70: 0601 | I70: 工作人员 | J70: 67.25 | K70: 40.35 | L70: 77.43 | M70: 30.97 | N70: 71.32 | O70: 7 | P70: 是
A71: 68 | B71: 冯庆 | C71: 男 | D71: 1152220100623 | E71: 石阡县 | F71: 06 | G71: 石阡县下属乡镇事业单位 | H71: 0601 | I71: 工作人员 | J71: 68 | K71: 40.8 | L71: 73.93 | M71: 29.57 | N71: 70.37 | O71: 8
A72: 69 | B72: 张鹏 | C72: 男 | D72: 1152220101221 | E72: 石阡县 | F72: 06 | G72: 石阡县下属乡镇事业单位 | H72: 0601 | I72: 工作人员 | J72: 64.6 | K72: 38.76 | L72: 77.03 | M72: 30.81 | N72: 69.57 | O72: 9
A73: 70 | B73: 黎军 | C73: 男 | D73: 1152220100608 | E73: 石阡县 | F73: 06 | G73: 石阡县下属乡镇事业单位 | H73: 0601 | I73: 工作人员 | J73: 64.85 | K73: 38.91 | L73: 76.17 | M73: 30.47 | N73: 69.38 | O73: 10
A74: 71 | B74: 谭力滔 | C74: 男 | D74: 1152220100603 | E74: 石阡县 | F74: 06 | G74: 石阡县下属乡镇事业单位 | H74: 0601 | I74: 工作人员 | J74: 63.45 | K74: 38.07 | L74: 77.83 | M74: 31.13 | N74: 69.20 | O74: 11
A75: 72 | B75: 符宁祥 | C75: 男 | D75: 1152220101530 | E75: 石阡县 | F75: 06 | G75: 石阡县下属乡镇事业单位 | H75: 0601 | I75: 工作人员 | J75: 63 | K75: 37.8 | L75: 77.67 | M75: 31.07 | N75: 68.87 | O75: 12
A76: 73 | B76: 吴林 | C76: 男 | D76: 1152220101504 | E76: 石阡县 | F76: 06 | G76: 石阡县下属乡镇事业单位 | H76: 0601 | I76: 工作人员 | J76: 65.1 | K76: 39.06 | L76: 74.10 | M76: 29.64 | N76: 68.70 | O76: 13
A77: 74 | B77: 梁世雄 | C77: 男 | D77: 1152220101823 | E77: 石阡县 | F77: 06 | G77: 石阡县下属乡镇事业单位 | H77: 0601 | I77: 工作人员 | J77: 64.1 | K77: 38.46 | L77: 75.33 | M77: 30.13 | N77: 68.59 | O77: 14
A78: 75 | B78: 余江华 | C78: 男 | D78: 1152220101306 | E78: 石阡县 | F78: 06 | G78: 石阡县下属乡镇事业单位 | H78: 0601 | I78: 工作人员 | J78: 65.45 | K78: 39.27 | L78: 73.03 | M78: 29.21 | N78: 68.48 | O78: 15
A79: 76 | B79: 赵旭 | C79: 男 | D79: 1152220100709 | E79: 石阡县 | F79: 06 | G79: 石阡县下属乡镇事业单位 | H79: 0601 | I79: 工作人员 | J79: 65.6 | K79: 39.36 | L79: 72.77 | M79: 29.11 | N79: 68.47 | O79: 16
A80: 77 | B80: 刘小军 | C80: 男 | D80: 1152220100827 | E80: 石阡县 | F80: 06 | G80: 石阡县下属乡镇事业单位 | H80: 0601 | I80: 工作人员 | J80: 64.35 | K80: 38.61 | L80: 74.38 | M80: 29.75 | N80: 68.36 | O80: 17
A81: 78 | B81: 陈黔广 | C81: 男 | D81: 1152220102010 | E81: 石阡县 | F81: 06 | G81: 石阡县下属乡镇事业单位 | H81: 0601 | I81: 工作人员 | J81: 63.45 | K81: 38.07 | L81: 73.67 | M81: 29.47 | N81: 67.54 | O81: 18
A82: 79 | B82: 王宝 | C82: 男 | D82: 1152220101502 | E82: 石阡县 | F82: 06 | G82: 石阡县下属乡镇事业单位 | H82: 0601 | I82: 工作人员 | J82: 63.7 | K82: 38.22 | L82: 69.57 | M82: 27.83 | N82: 66.05 | O82: 19
A83: 80 | B83: 何小清 | C83: 男 | D83: 1152220101117 | E83: 石阡县 | F83: 06 | G83: 石阡县下属乡镇事业单位 | H83: 0601 | I83: 工作人员 | J83: 62.95 | K83: 37.77 | L83: 58.50 | M83: 23.40 | N83: 61.17 | O83: 20
A84: 81 | B84: 曹渊 | C84: 男 | D84: 1152220100605 | E84: 石阡县 | F84: 06 | G84: 石阡县下属乡镇事业单位 | H84: 0601 | I84: 工作人员 | J84: 66.9 | K84: 40.14 | L84: 缺考 | M84: 0 | N84: 40.14 | Q84: 未被定兵
A85: 82 | B85: 冉会东 | C85: 男 | D85: 1152220100612 | E85: 印江县 | F85: 07 | G85: 印江县下属乡镇事业单位 | H85: 0701 | I85: 工作人员 | J85: 73.05 | K85: 43.83 | L85: 74.20 | M85: 29.68 | N85: 73.51 | O85: 1 | P85: 是
A86: 83 | B86: 谭进 | C86: 男 | D86: 1152220102013 | E86: 印江县 | F86: 07 | G86: 印江县下属乡镇事业单位 | H86: 0701 | I86: 工作人员 | J86: 72.25 | K86: 43.35 | L86: 75.13 | M86: 30.05 | N86: 73.40 | O86: 2 | P86: 是
A87: 84 | B87: 蔡怡民 | C87: 男 | D87: 1152220101008 | E87: 印江县 | F87: 07 | G87: 印江县下属乡镇事业单位 | H87: 0701 | I87: 工作人员 | J87: 70.3 | K87: 42.18 | L87: 76.10 | M87: 30.44 | N87: 72.62 | O87: 3 | P87: 是
A88: 85 | B88: 陈珉 | C88: 男 | D88: 1152220101015 | E88: 印江县 | F88: 07 | G88: 印江县下属乡镇事业单位 | H88: 0701 | I88: 工作人员 | J88: 68.05 | K88: 40.83 | L88: 79.07 | M88: 31.63 | N88: 72.46 | O88: 4 | P88: 是
A89: 86 | B89: 郭松林 | C89: 男 | D89: 1152220101719 | E89: 印江县 | F89: 07 | G89: 印江县下属乡镇事业单位 | H89: 0701 | I89: 工作人员 | J89: 68.85 | K89: 41.31 | L89: 74.10 | M89: 29.64 | N89: 70.95 | O89: 5 | P89: 是
A90: 87 | B90: 周江松 | C90: 男 | D90: 1152220101620 | E90: 印江县 | F90: 07 | G90: 印江县下属乡镇事业单位 | H90: 0701 | I90: 工作人员 | J90: 69.35 | K90: 41.61 | L90: 72.50 | M90: 29.00 | N90: 70.61 | O90: 6 | P90: 是
A91: 88 | B91: 杨丽君 | C91: 男 | D91: 1152220100202 | E91: 印江县 | F91: 07 | G91: 印江县下属乡镇事业单位 | H91: 0701 | I91: 工作人员 | J91: 67.35 | K91: 40.41 | L91: 74.87 | M91: 29.95 | N91: 70.36 | O91: 7 | P91: 是
A92: 89 | B92: 杜懿 | C92: 男 | D92: 1152220100825 | E92: 印江县 | F92: 07 | G92: 印江县下属乡镇事业单位 | H92: 0701 | I92: 工作人员 | J92: 64.8 | K92: 38.88 | L92: 78.17 | M92: 31.27 | N92: 70.15 | O92: 8 | P92: 是
A93: 90 | B93: 余天游 | C93: 男 | D93: 1152220100926 | E93: 印江县 | F93: 07 | G93: 印江县下属乡镇事业单位 | H93: 0701 | I93: 工作人员 | J93: 63.45 | K93: 38.07 | L93: 79.87 | M93: 31.95 | N93: 70.02 | O93: 9 | P93: 是
A94: 91 | B94: 任万亮 | C94: 男 | D94: 1152220101523 | E94: 印江县 | F94: 07 | G94: 印江县下属乡镇事业单位 | H94: 0701 | I94: 工作人员 | J94: 65.2 | K94: 39.12 | L94: 76.50 | M94: 30.60 | N94: 69.72 | O94: 10
A95: 92 | B95: 张成溢 | C95: 男 | D95: 1152220100221 | E95: 印江县 | F95: 07 | G95: 印江县下属乡镇事业单位 | H95: 0701 | I95: 工作人员 | J95: 62.85 | K95: 37.71 | L95: 79.63 | M95: 31.85 | N95: 69.56 | O95: 11
A96: 93 | B96: 邹江南 | C96: 男 | D96: 1152220101318 | E96: 印江县 | F96: 07 | G96: 印江县下属乡镇事业单位 | H96: 0701 | I96: 工作人员 | J96: 62.75 | K96: 37.65 | L96: 76.33 | M96: 30.53 | N96: 68.18 | O96: 12
A97: 94 | B97: 文正正 | C97: 男 | D97: 1152220101010 | E97: 印江县 | F97: 07 | G97: 印江县下属乡镇事业单位 | H97: 0701 | I97: 工作人员 | J97: 62 | K97: 37.2 | L97: 77.37 | M97: 30.95 | N97: 68.15 | O97: 13
A98: 95 | B98: 刘林阳 | C98: 男 | D98: 1152220101214 | E98: 印江县 | F98: 07 | G98: 印江县下属乡镇事业单位 | H98: 0701 | I98: 工作人员 | J98: 64.55 | K98: 38.73 | L98: 72.97 | M98: 29.19 | N98: 67.92 | O98: 14
A99: 96 | B99: 任堃杰 | C99: 男 | D99: 1152220101710 | E99: 印江县 | F99: 07 | G99: 印江县下属乡镇事业单位 | H99: 0701 | I99: 工作人员 | J99: 63.05 | K99: 37.83 | L99: 71.27 | M99: 28.51 | N99: 66.34 | O99: 15
A100: 97 | B100: 李淳杰 | C100: 男 | D100: 1152220100118 | E100: 印江县 | F100: 07 | G100: 印江县下属乡镇事业单位 | H100: 0701 | I100: 工作人员 | J100: 61.3 | K100: =J100*60% -> 36.78 | L100: 72.83 | M100: 29.13 | N100: 65.91 | O100: 16
A101: 98 | B101: 程清原 | C101: 男 | D101: 1152220100401 | E101: 印江县 | F101: 07 | G101: 印江县下属乡镇事业单位 | H101: 0701 | I101: 工作人员 | J101: 62.35 | K101: 37.41 | L101: 71.07 | M101: 28.43 | N101: =K101+M101 -> 65.84 | O101: 17
A102: 99 | B102: 谭远志 | C102: 男 | D102: 1152220100209 | E102: 印江县 | F102: 07 | G102: 印江县下属乡镇事业单位 | H102: 0701 | I102: 工作人员 | J102: 63 | K102: 37.8 | L102: 69.80 | M102: 27.92 | N102: 65.72 | O102: 18
A103: 100 | B103: 陈星 | C103: 男 | D103: 1152220101927 | E103: 印江县 | F103: 07 | G103: 印江县下属乡镇事业单位 | H103: 0701 | I103: 工作人员 | J103: 59.55 | K103: 35.73 | L103: 72.30 | M103: 28.92 | N103: 64.65 | O103: 19
A104: 101 | B104: 邹润 | C104: 男 | D104: 1152220100503 | E104: 印江县 | F104: 07 | G104: 印江县下属乡镇事业单位 | H104: 0701 | I104: 工作人员 | J104: 59.85 | K104: 35.91 | L104: 71.13 | M104: 28.45 | N104: 64.36 | O104: 20
A105: 102 | B105: 何潮浪 | C105: 男 | D105: 1152220101627 | E105: 印江县 | F105: 07 | G105: 印江县下属乡镇事业单位 | H105: 0701 | I105: 工作人员 | J105: 60.8 | K105: 36.48 | L105: 69.23 | M105: 27.69 | N105: 64.17 | O105: 21
A106: 103 | B106: 何远攀 | C106: 男 | D106: 1152220100224 | E106: 印江县 | F106: 07 | G106: 印江县下属乡镇事业单位 | H106: 0701 | I106: 工作人员 | J106: 73.8 | K106: 44.28 | L106: 缺考 | M106: 0 | N106: 44.28 | Q106: 未被定兵
A107: 104 | B107: 蔡润录 | C107: 男 | D107: 1152220101213 | E107: 印江县 | F107: 07 | G107: 印江县下属乡镇事业单位 | H107: 0701 | I107: 工作人员 | J107: 70 | K107: 42 | L107: 缺考 | M107: 0 | N107: 42.00 | Q107: 未被定兵
A108: 105 | B108: 陈超 | C108: 男 | D108: 1152220100130 | E108: 印江县 | F108: 07 | G108: 印江县下属乡镇事业单位 | H108: 0701 | I108: 工作人员 | J108: 63.55 | K108: 38.13 | L108: 缺考 | M108: 0 | N108: 38.13 | Q108: 未被定兵
A109: 106 | B109: 任红波 | C109: 男 | D109: 1152220100208 | E109: 印江县 | F109: 07 | G109: 印江县下属乡镇事业单位 | H109: 0701 | I109: 工作人员 | J109: 63.45 | K109: 38.07 | L109: 缺考 | M109: 0 | N109: 38.07 | Q109: 未被定兵
A110: 107 | B110: 张飞红 | C110: 男 | D110: 1152220100421 | E110: 印江县 | F110: 07 | G110: 印江县下属乡镇事业单位 | H110: 0701 | I110: 工作人员 | J110: 62.75 | K110: 37.65 | L110: 缺考 | M110: 0 | N110: 37.65 | Q110: 未被定兵
A111: 108 | B111: 何江 | C111: 男 | D111: 1152220100510 | E111: 印江县 | F111: 07 | G111: 印江县下属乡镇事业单位 | H111: 0701 | I111: 工作人员 | J111: 60 | K111: 36 | L111: 缺考 | M111: 0 | N111: 36.00 | Q111: 未被定兵
A112: 109 | B112: 唐柯 | C112: 男 | D112: 1152220100505 | E112: 思南县 | F112: 08 | G112: 思南县下属乡镇事业单位 | H112: 0801 | I112: 工作人员 | J112: =VLOOKUP(B112,[1]笔试成绩!$B:$I,8,FALSE) -> 72.5 | K112: 43.5 | L112: 85.53 | M112: =L112*40% -> 34.21 | N112: 77.71 | O112: 1 | P112: 是
A113: 110 | B113: 王万海 | C113: 男 | D113: 1152220100326 | E113: 思南县 | F113: 08 | G113: 思南县下属乡镇事业单位 | H113: 0801 | I113: 工作人员 | J113: =VLOOKUP(B113,[1]笔试成绩!$B:$I,8,FALSE) -> 72.8 | K113: 43.68 | L113: 73.93 | M113: 29.57 | N113: 73.25 | O113: 2 | P113: 是
A114: 111 | B114: 何思源 | C114: 男 | D114: 1152220101616 | E114: 思南县 | F114: 08 | G114: 思南县下属乡镇事业单位 | H114: 0801 | I114: 工作人员 | J114: =VLOOKUP(B114,[1]笔试成绩!$B:$I,8,FALSE) -> 69.2 | K114: 41.52 | L114: 78.23 | M114: 31.29 | N114: 72.81 | O114: 3 | P114: 是
A115: 112 | B115: 李博宇 | C115: 男 | D115: 1152220101919 | E115: 思南县 | F115: 08 | G115: 思南县下属乡镇事业单位 | H115: 0801 | I115: 工作人员 | J115: =VLOOKUP(B115,[1]笔试成绩!$B:$I,8,FALSE) -> 68.55 | K115: 41.13 | L115: 79.20 | M115: 31.68 | N115: 72.81 | O115: 3 | P115: 是
A116: 113 | B116: 张迪 | C116: 男 | D116: 1152220101721 | E116: 思南县 | F116: 08 | G116: 思南县下属乡镇事业单位 | H116: 0801 | I116: 工作人员 | J116: =VLOOKUP(B116,[1]笔试成绩!$B:$I,8,FALSE) -> 69.55 | K116: 41.73 | L116: 76.37 | M116: 30.55 | N116: 72.28 | O116: 5 | P116: 是
A117: 114 | B117: 杨飞扬 | C117: 男 | D117: 1152220101611 | E117: 思南县 | F117: 08 | G117: 思南县下属乡镇事业单位 | H117: 0801 | I117: 工作人员 | J117: =VLOOKUP(B117,[1]笔试成绩!$B:$I,8,FALSE) -> 64.25 | K117: 38.55 | L117: 81.67 | M117: 32.67 | N117: 71.22 | O117: 6 | P117: 是
A118: 115 | B118: 秦子寒 | C118: 男 | D118: 1152220100925 | E118: 思南县 | F118: 08 | G118: 思南县下属乡镇事业单位 | H118: 0801 | I118: 工作人员 | J118: =VLOOKUP(B118,[1]笔试成绩!$B:$I,8,FALSE) -> 69.85 | K118: 41.91 | L118: 71.70 | M118: 28.68 | N118: 70.59 | O118: 7 | P118: 是
A119: 116 | B119: 夏欢 | C119: 男 | D119: 1152220101812 | E119: 思南县 | F119: 08 | G119: 思南县下属乡镇事业单位 | H119: 0801 | I119: 工作人员 | J119: =VLOOKUP(B119,[1]笔试成绩!$B:$I,8,FALSE) -> 68.7 | K119: 41.22 | L119: 71.50 | M119: 28.60 | N119: 69.82 | O119: 8 | P119: 是
A120: 117 | B120: 田雨龙 | C120: 男 | D120: 1152220100101 | E120: 思南县 | F120: 08 | G120: 思南县下属乡镇事业单位 | H120: 0801 | I120: 工作人员 | J120: =VLOOKUP(B120,[1]笔试成绩!$B:$I,8,FALSE) -> 65.6 | K120: 39.36 | L120: 72.57 | M120: 29.03 | N120: 68.39 | O120: 9 | P120: 是
A121: 118 | B121: 唐海 | C121: 男 | D121: 1152220101228 | E121: 思南县 | F121: 08 | G121: 思南县下属乡镇事业单位 | H121: 0801 | I121: 工作人员 | J121: =VLOOKUP(B121,[1]笔试成绩!$B:$I,8,FALSE) -> 64.3 | K121: =J121*60% -> 38.58 | L121: 73.47 | M121: 29.39 | N121: 67.97 | O121: 10 | P121: 是
A122: 119 | B122: 黄孝 | C122: 男 | D122: 1152220101313 | E122: 思南县 | F122: 08 | G122: 思南县下属乡镇事业单位 | H122: 0801 | I122: 工作人员 | J122: =VLOOKUP(B122,[1]笔试成绩!$B:$I,8,FALSE) -> 60.5 | K122: 36.3 | L122: 73.13 | M122: 29.25 | N122: 65.55 | O122: 11 | P122: 是
A123: 120 | B123: 刘智强 | C123: 男 | D123: 1152220100410 | E123: 思南县 | F123: 08 | G123: 思南县下属乡镇事业单位 | H123: 0801 | I123: 工作人员 | J123: =VLOOKUP(B123,[1]笔试成绩!$B:$I,8,FALSE) -> 61.2 | K123: 36.72 | L123: 71.83 | M123: 28.73 | N123: 65.45 | O123: 12
A124: 121 | B124: 何邦能 | C124: 男 | D124: 1152220101025 | E124: 思南县 | F124: 08 | G124: 思南县下属乡镇事业单位 | H124: 0801 | I124: 工作人员 | J124: =VLOOKUP(B124,[1]笔试成绩!$B:$I,8,FALSE) -> 62.1 | K124: 37.26 | L124: 69.30 | M124: 27.72 | N124: 64.98 | O124: 13
A125: 122 | B125: 勾雯旸 | C125: 男 | D125: 1152220100808 | E125: 思南县 | F125: 08 | G125: 思南县下属乡镇事业单位 | H125: 0801 | I125: 工作人员 | J125: =VLOOKUP(B125,[1]笔试成绩!$B:$I,8,FALSE) -> 55.35 | K125: 33.21 | L125: 78.00 | M125: 31.20 | N125: 64.41 | O125: 14
A126: 123 | B126: 王锐 | C126: 男 | D126: 1152220101509 | E126: 思南县 | F126: 08 | G126: 思南县下属乡镇事业单位 | H126: 0801 | I126: 工作人员 | J126: =VLOOKUP(B126,[1]笔试成绩!$B:$I,8,FALSE) -> 60.25 | K126: 36.15 | L126: 69.63 | M126: 27.85 | N126: 64.00 | O126: 15
A127: 124 | B127: 邓路锋 | C127: 男 | D127: 1152220100502 | E127: 思南县 | F127: 08 | G127: 思南县下属乡镇事业单位 | H127: 0801 | I127: 工作人员 | J127: =VLOOKUP(B127,[1]笔试成绩!$B:$I,8,FALSE) -> 57.5 | K127: 34.5 | L127: 73.43 | M127: 29.37 | N127: 63.87 | O127: 16
A128: 125 | B128: 邓宇航 | C128: 男 | D128: 1152220101019 | E128: 思南县 | F128: 08 | G128: 思南县下属乡镇事业单位 | H128: 0801 | I128: 工作人员 | J128: =VLOOKUP(B128,[1]笔试成绩!$B:$I,8,FALSE) -> 59.05 | K128: 35.43 | L128: 70.83 | M128: 28.33 | N128: 63.76 | O128: 17
A129: 126 | B129: 张涛 | C129: 男 | D129: 1152220102019 | E129: 思南县 | F129: 08 | G129: 思南县下属乡镇事业单位 | H129: 0801 | I129: 工作人员 | J129: =VLOOKUP(B129,[1]笔试成绩!$B:$I,8,FALSE) -> 58.2 | K129: 34.92 | L129: 72.00 | M129: 28.80 | N129: 63.72 | O129: 18
A130: 127 | B130: 苏胡 | C130: 男 | D130: 1152220101005 | E130: 思南县 | F130: 08 | G130: 思南县下属乡镇事业单位 | H130: 0801 | I130: 工作人员 | J130: =VLOOKUP(B130,[1]笔试成绩!$B:$I,8,FALSE) -> 56.6 | K130: 33.96 | L130: 73.23 | M130: 29.29 | N130: 63.25 | O130: 19
A131: 128 | B131: 邵明会 | C131: 男 | D131: 1152220101415 | E131: 思南县 | F131: 08 | G131: 思南县下属乡镇事业单位 | H131: 0801 | I131: 工作人员 | J131: =VLOOKUP(B131,[1]笔试成绩!$B:$I,8,FALSE) -> 54.45 | K131: 32.67 | L131: 75.07 | M131: 30.03 | N131: 62.70 | O131: 20
A132: 129 | B132: 梁胡冰 | C132: 男 | D132: 1152220101203 | E132: 思南县 | F132: 08 | G132: 思南县下属乡镇事业单位 | H132: 0801 | I132: 工作人员 | J132: =VLOOKUP(B132,[1]笔试成绩!$B:$I,8,FALSE) -> 57.2 | K132: 34.32 | L132: 69.60 | M132: 27.84 | N132: 62.16 | O132: 21
A133: 130 | B133: 冉景发 | C133: 男 | D133: 1152220101925 | E133: 思南县 | F133: 08 | G133: 思南县下属乡镇事业单位 | H133: 0801 | I133: 工作人员 | J133: =VLOOKUP(B133,[1]笔试成绩!$B:$I,8,FALSE) -> 56.25 | K133: 33.75 | L133: 70.80 | M133: 28.32 | N133: 62.07 | O133: 22
A134: 131 | B134: 杨宝军 | C134: 男 | D134: 1152220101506 | E134: 思南县 | F134: 08 | G134: 思南县下属乡镇事业单位 | H134: 0801 | I134: 工作人员 | J134: =VLOOKUP(B134,[1]笔试成绩!$B:$I,8,FALSE) -> 53.45 | K134: 32.07 | L134: 73.20 | M134: 29.28 | N134: 61.35 | O134: 23
A135: 132 | B135: 龚广林 | C135: 男 | D135: 1152220101724 | E135: 思南县 | F135: 08 | G135: 思南县下属乡镇事业单位 | H135: 0801 | I135: 工作人员 | J135: =VLOOKUP(B135,[1]笔试成绩!$B:$I,8,FALSE) -> 52.95 | K135: 31.77 | L135: 73.60 | M135: 29.44 | N135: 61.21 | O135: 24
A136: 133 | B136: 袁燕 | C136: 女 | D136: 1152220101818 | E136: 思南县 | F136: 08 | G136: 思南县下属乡镇事业单位 | H136: 0801 | I136: 工作人员 | J136: =VLOOKUP(B136,[1]笔试成绩!$B:$I,8,FALSE) -> 75.45 | K136: 45.27 | L136: 缺考 | M136: 0 | N136: =K136 -> 45.27 | Q136: =VLOOKUP(B136,[2]Sheet1!$B:$K,10,FALSE) -> 未被定兵
A137: 134 | B137: 李飞成 | C137: 男 | D137: 1152220101706 | E137: 思南县 | F137: 08 | G137: 思南县下属乡镇事业单位 | H137: 0801 | I137: 工作人员 | J137: =VLOOKUP(B137,[1]笔试成绩!$B:$I,8,FALSE) -> 60.95 | K137: 36.57 | L137: 缺考 | M137: 0 | N137: =K137 -> 36.57 | Q137: =VLOOKUP(B137,[2]Sheet1!$B:$K,10,FALSE) -> 未被定兵
A138: 135 | B138: 王晓强 | C138: 男 | D138: 1152220101024 | E138: 思南县 | F138: 08 | G138: 思南县下属乡镇事业单位 | H138: 0801 | I138: 工作人员 | J138: =VLOOKUP(B138,[1]笔试成绩!$B:$I,8,FALSE) -> 59.3 | K138: 35.58 | L138: 缺考 | M138: 0 | N138: 35.58 | Q138: =VLOOKUP(B138,[2]Sheet1!$B:$K,10,FALSE) -> 未被定兵
A139: 136 | B139: 宋钰军 | C139: 男 | D139: 1152220101215 | E139: 思南县 | F139: 08 | G139: 思南县下属乡镇事业单位 | H139: 0801 | I139: 工作人员 | J139: =VLOOKUP(B139,[1]笔试成绩!$B:$I,8,FALSE) -> 59.3 | K139: 35.58 | L139: 缺考 | M139: 0 | N139: 35.58 | Q139: =VLOOKUP(B139,[2]Sheet1!$B:$K,10,FALSE) -> 未被定兵
A140: 137 | B140: 吴学章 | C140: 男 | D140: 1152220100727 | E140: 思南县 | F140: 08 | G140: 思南县下属乡镇事业单位 | H140: 0801 | I140: 工作人员 | J140: =VLOOKUP(B140,[1]笔试成绩!$B:$I,8,FALSE) -> 57.6 | K140: 34.56 | L140: 缺考 | M140: 0 | N140: 34.56 | Q140: =VLOOKUP(B140,[2]Sheet1!$B:$K,10,FALSE) -> 未被定兵
A141: 138 | B141: 张祥 | C141: 男 | D141: 1152220101302 | E141: 思南县 | F141: 08 | G141: 思南县下属乡镇事业单位 | H141: 0801 | I141: 工作人员 | J141: =VLOOKUP(B141,[1]笔试成绩!$B:$I,8,FALSE) -> 56.5 | K141: 33.9 | L141: 缺考 | M141: 0 | N141: 33.90 | Q141: =VLOOKUP(B141,[2]Sheet1!$B:$K,10,FALSE) -> 未被定兵
A142: 139 | B142: 冷朝曦 | C142: 男 | D142: 1152220101426 | E142: 思南县 | F142: 08 | G142: 思南县下属乡镇事业单位 | H142: 0801 | I142: 工作人员 | J142: =VLOOKUP(B142,[1]笔试成绩!$B:$I,8,FALSE) -> 55.95 | K142: 33.57 | L142: 缺考 | M142: 0 | N142: 33.57 | Q142: =VLOOKUP(B142,[2]Sheet1!$B:$K,10,FALSE) -> 未被定兵
A143: 140 | B143: 何胜强 | C143: 男 | D143: 1152220100713 | E143: 思南县 | F143: 08 | G143: 思南县下属乡镇事业单位 | H143: 0801 | I143: 工作人员 | J143: =VLOOKUP(B143,[1]笔试成绩!$B:$I,8,FALSE) -> 54.2 | K143: 32.52 | L143: 缺考 | M143: 0 | N143: 32.52 | Q143: =VLOOKUP(B143,[2]Sheet1!$B:$K,10,FALSE) -> 未被定兵
A144: 141 | B144: 郭浩 | C144: 男 | D144: 1152220101419 | E144: 思南县 | F144: 08 | G144: 思南县下属乡镇事业单位 | H144: 0801 | I144: 工作人员 | J144: =VLOOKUP(B144,[1]笔试成绩!$B:$I,8,FALSE) -> 52.8 | K144: 31.68 | L144: 缺考 | M144: 0 | N144: 31.68 | Q144: =VLOOKUP(B144,[2]Sheet1!$B:$K,10,FALSE) -> 未被定兵
A145: 142 | B145: 田浪 | C145: 男 | D145: 1152220101907 | E145: 德江县 | F145: 09 | G145: 德江县下属乡镇事业单位 | H145: 0901 | I145: 工作人员 | J145: 74.95 | K145: 44.97 | L145: 71.50 | M145: =L145*40% -> 28.60 | N145: =K145+M145 -> 73.57 | O145: 1 | P145: 是
A146: 143 | B146: 田兴煜 | C146: 男 | D146: 1152220101820 | E146: 德江县 | F146: 09 | G146: 德江县下属乡镇事业单位 | H146: 0901 | I146: 工作人员 | J146: 73.45 | K146: 44.07 | L146: 73.67 | M146: =L146*40% -> 29.47 | N146: =K146+M146 -> 73.54 | O146: 2 | P146: 是
A147: 144 | B147: 罗振威 | C147: 男 | D147: 1152220100315 | E147: 德江县 | F147: 09 | G147: 德江县下属乡镇事业单位 | H147: 0901 | I147: 工作人员 | J147: 70.45 | K147: 42.27 | L147: 76.83 | M147: 30.73 | N147: 73.00 | O147: 3 | P147: 是
A148: 145 | B148: 李海林 | C148: 男 | D148: 1152220101722 | E148: 德江县 | F148: 09 | G148: 德江县下属乡镇事业单位 | H148: 0901 | I148: 工作人员 | J148: 71.35 | K148: 42.81 | L148: 72.17 | M148: 28.87 | N148: 71.68 | O148: 4 | P148: 是
A149: 146 | B149: 杜江龙 | C149: 男 | D149: 1152220100627 | E149: 德江县 | F149: 09 | G149: 德江县下属乡镇事业单位 | H149: 0901 | I149: 工作人员 | J149: 67.6 | K149: 40.56 | L149: 72.67 | M149: 29.07 | N149: 69.63 | O149: 5 | P149: 是
A150: 147 | B150: 郑宇兵 | C150: 男 | D150: 1152220100201 | E150: 德江县 | F150: 09 | G150: 德江县下属乡镇事业单位 | H150: 0901 | I150: 工作人员 | J150: 64.85 | K150: 38.91 | L150: 75.70 | M150: 30.28 | N150: 69.19 | O150: 6 | P150: 是
A151: 148 | B151: 熊江涛 | C151: 男 | D151: 1152220101206 | E151: 德江县 | F151: 09 | G151: 德江县下属乡镇事业单位 | H151: 0901 | I151: 工作人员 | J151: 61.5 | K151: 36.9 | L151: 76.83 | M151: 30.73 | N151: 67.63 | O151: 7 | P151: 是
A152: 149 | B152: 彭青春 | C152: 男 | D152: 1152220101418 | E152: 德江县 | F152: 09 | G152: 德江县下属乡镇事业单位 | H152: 0901 | I152: 工作人员 | J152: 60.6 | K152: 36.36 | L152: 73.93 | M152: 29.57 | N152: 65.93 | O152: 8 | P152: 是
A153: 150 | B153: 冉永林 | C153: 男 | D153: 1152220101212 | E153: 德江县 | F153: 09 | G153: 德江县下属乡镇事业单位 | H153: 0901 | I153: 工作人员 | J153: 62.8 | K153: 37.68 | L153: 69.83 | M153: 27.93 | N153: 65.61 | O153: 9
A154: 151 | B154: 高小兵 | C154: 男 | D154: 1152220100521 | E154: 德江县 | F154: 09 | G154: 德江县下属乡镇事业单位 | H154: 0901 | I154: 工作人员 | J154: 63.45 | K154: 38.07 | L154: 68.50 | M154: 27.40 | N154: 65.47 | O154: 10
A155: 152 | B155: 李大林 | C155: 男 | D155: 1152220101623 | E155: 德江县 | F155: 09 | G155: 德江县下属乡镇事业单位 | H155: 0901 | I155: 工作人员 | J155: 61.45 | K155: 36.87 | L155: 70.83 | M155: 28.33 | N155: 65.20 | O155: 11
A156: 153 | B156: 张海洋 | C156: 男 | D156: 1152220101513 | E156: 德江县 | F156: 09 | G156: 德江县下属乡镇事业单位 | H156: 0901 | I156: 工作人员 | J156: 62.35 | K156: 37.41 | L156: 67.63 | M156: 27.05 | N156: 64.46 | O156: 12
A157: 154 | B157: 陈昱冰 | C157: 男 | D157: 1152220100629 | E157: 德江县 | F157: 09 | G157: 德江县下属乡镇事业单位 | H157: 0901 | I157: 工作人员 | J157: 60.7 | K157: 36.42 | L157: 70.03 | M157: 28.01 | N157: 64.43 | O157: 13
A158: 155 | B158: 朱砚 | C158: 男 | D158: 1152220100924 | E158: 德江县 | F158: 09 | G158: 德江县下属乡镇事业单位 | H158: 0901 | I158: 工作人员 | J158: 59.2 | K158: 35.52 | L158: 70.07 | M158: 28.03 | N158: 63.55 | O158: 14
A159: 156 | B159: 杜强 | C159: 男 | D159: 1152220101119 | E159: 德江县 | F159: 09 | G159: 德江县下属乡镇事业单位 | H159: 0901 | I159: 工作人员 | J159: 77.85 | K159: 46.71 | L159: 缺考 | M159: 0 | N159: 46.71 | Q159: 未被定兵
A160: 157 | B160: 张田果 | C160: 男 | D160: 1152220101325 | E160: 德江县 | F160: 09 | G160: 德江县下属乡镇事业单位 | H160: 0901 | I160: 工作人员 | J160: 74.45 | K160: 44.67 | L160: 缺考 | M160: 0 | N160: 44.67 | Q160: 未被定兵
A161: 158 | B161: 简宇春 | C161: 女 | D161: 1152220100928 | E161: 德江县 | F161: 09 | G161: 德江县下属乡镇事业单位 | H161: 0901 | I161: 工作人员 | J161: 74.2 | K161: 44.52 | L161: 缺考 | M161: 0 | N161: 44.52 | Q161: 未被定兵
A162: 159 | B162: 张文 | C162: 男 | D162: 1152220100411 | E162: 德江县 | F162: 09 | G162: 德江县下属乡镇事业单位 | H162: 0901 | I162: 工作人员 | J162: 67.25 | K162: 40.35 | L162: 0 | M162: =L162*40% -> 0 | N162: 40.35 | Q162: 未被定兵,面试成绩不计入总成绩
A163: 160 | B163: 勾睿 | C163: 男 | D163: 1152220101514 | E163: 德江县 | F163: 09 | G163: 德江县下属乡镇事业单位 | H163: 0901 | I163: 工作人员 | J163: 66.3 | K163: =J163*60% -> 39.78 | L163: 缺考 | M163: 0 | N163: 39.78 | Q163: 未被定兵
A164: 161 | B164: 张润民 | C164: 男 | D164: 1152220101615 | E164: 德江县 | F164: 09 | G164: 德江县下属乡镇事业单位 | H164: 0901 | I164: 工作人员 | J164: 63.8 | K164: 38.28 | L164: 缺考 | M164: 0 | N164: 38.28 | Q164: 未被定兵
A165: 162 | B165: 田子炜 | C165: 男 | D165: 1152220100803 | E165: 德江县 | F165: 09 | G165: 德江县下属乡镇事业单位 | H165: 0901 | I165: 工作人员 | J165: 63.35 | K165: 38.01 | L165: 缺考 | M165: 0 | N165: =K165+M165 -> 38.01 | Q165: 未被定兵
A166: 163 | B166: 岳喜龙 | C166: 男 | D166: 1152220101301 | E166: 德江县 | F166: 09 | G166: 德江县下属乡镇事业单位 | H166: 0901 | I166: 工作人员 | J166: 62.5 | K166: 37.5 | L166: 缺考 | M166: 0 | N166: 37.50 | Q166: 未被定兵
A167: 164 | B167: 张桂煌 | C167: 男 | D167: 1152220100519 | E167: 德江县 | F167: 09 | G167: 德江县下属乡镇事业单位 | H167: 0901 | I167: 工作人员 | J167: 62 | K167: 37.2 | L167: 缺考 | M167: 0 | N167: 37.20 | Q167: 未被定兵
A168: 165 | B168: 罗文滔 | C168: 男 | D168: 1152220100715 | E168: 德江县 | F168: 09 | G168: 德江县下属乡镇事业单位 | H168: 0901 | I168: 工作人员 | J168: 60.6 | K168: 36.36 | L168: 缺考 | M168: 0 | N168: 36.36 | Q168: 未被定兵
A169: 166 | B169: 陈思瀚 | C169: 男 | D169: 1152220100414 | E169: 沿河县 | F169: 10 | G169: 沿河县下属乡镇事业单位 | H169: 1001 | I169: 工作人员 | J169: 69.15 | K169: 41.49 | L169: 75.87 | M169: 30.35 | N169: 71.84 | O169: 1 | P169: 是
A170: 167 | B170: 冉念 | C170: 男 | D170: 1152220100721 | E170: 沿河县 | F170: 10 | G170: 沿河县下属乡镇事业单位 | H170: 1001 | I170: 工作人员 | J170: 70.45 | K170: 42.27 | L170: 73.13 | M170: 29.25 | N170: 71.52 | O170: 2 | P170: 是
A171: 168 | B171: 郭彦 | C171: 男 | D171: 1152220100819 | E171: 沿河县 | F171: 10 | G171: 沿河县下属乡镇事业单位 | H171: 1001 | I171: 工作人员 | J171: 69.55 | K171: 41.73 | L171: 71.93 | M171: 28.77 | N171: 70.50 | O171: 3 | P171: 是
A172: 169 | B172: 侯惠祥 | C172: 男 | D172: 1152220101628 | E172: 沿河县 | F172: 10 | G172: 沿河县下属乡镇事业单位 | H172: 1001 | I172: 工作人员 | J172: 69.8 | K172: 41.88 | L172: 71.17 | M172: 28.47 | N172: 70.35 | O172: 4 | P172: 是
A173: 170 | B173: 宋智豪 | C173: 男 | D173: 1152220100820 | E173: 沿河县 | F173: 10 | G173: 沿河县下属乡镇事业单位 | H173: 1001 | I173: 工作人员 | J173: 65.25 | K173: 39.15 | L173: 77.83 | M173: 31.13 | N173: 70.28 | O173: 5 | P173: 是
A174: 171 | B174: 崔健雄 | C174: 男 | D174: 1152220101528 | E174: 沿河县 | F174: 10 | G174: 沿河县下属乡镇事业单位 | H174: 1001 | I174: 工作人员 | J174: 66.2 | K174: =J174*60% -> 39.72 | L174: 73.93 | M174: 29.57 | N174: 69.29 | O174: 6 | P174: 是
A175: 172 | B175: 付欧 | C175: 男 | D175: 1152220101720 | E175: 沿河县 | F175: 10 | G175: 沿河县下属乡镇事业单位 | H175: 1001 | I175: 工作人员 | J175: 66 | K175: 39.6 | L175: 72.27 | M175: 28.91 | N175: 68.51 | O175: 7 | P175: 是
A176: 173 | B176: 陈双强 | C176: 男 | D176: 1152220101806 | E176: 沿河县 | F176: 10 | G176: 沿河县下属乡镇事业单位 | H176: 1001 | I176: 工作人员 | J176: 64.25 | K176: 38.55 | L176: 73.57 | M176: 29.43 | N176: 67.98 | O176: 8 | P176: 是
A177: 174 | B177: 文紫健 | C177: 男 | D177: 1152220101930 | E177: 沿河县 | F177: 10 | G177: 沿河县下属乡镇事业单位 | H177: 1001 | I177: 工作人员 | J177: 63.35 | K177: 38.01 | L177: 74.23 | M177: 29.69 | N177: 67.70 | O177: 9 | P177: 是
A178: 175 | B178: 付杰 | C178: 男 | D178: 1152220101524 | E178: 沿河县 | F178: 10 | G178: 沿河县下属乡镇事业单位 | H178: 1001 | I178: 工作人员 | J178: 63.8 | K178: 38.28 | L178: 72.43 | M178: 28.97 | N178: 67.25 | O178: 10
A179: 176 | B179: 冯中伟 | C179: 男 | D179: 1152220101621 | E179: 沿河县 | F179: 10 | G179: 沿河县下属乡镇事业单位 | H179: 1001 | I179: 工作人员 | J179: 61.2 | K179: 36.72 | L179: 76.30 | M179: 30.52 | N179: 67.24 | O179: 11
A180: 177 | B180: 陈雪剑 | C180: 男 | D180: 1152220100413 | E180: 沿河县 | F180: 10 | G180: 沿河县下属乡镇事业单位 | H180: 1001 | I180: 工作人员 | J180: 63.2 | K180: 37.92 | L180: 71.60 | M180: 28.64 | N180: 66.56 | O180: 12
A181: 178 | B181: 田雄雄 | C181: 男 | D181: 1152220101309 | E181: 沿河县 | F181: 10 | G181: 沿河县下属乡镇事业单位 | H181: 1001 | I181: 工作人员 | J181: 59.7 | K181: 35.82 | L181: 75.23 | M181: 30.09 | N181: 65.91 | O181: 13
A182: 179 | B182: 张程阳 | C182: 男 | D182: 1152220101713 | E182: 沿河县 | F182: 10 | G182: 沿河县下属乡镇事业单位 | H182: 1001 | I182: 工作人员 | J182: 60.45 | K182: 36.27 | L182: 73.87 | M182: 29.55 | N182: 65.82 | O182: 14
A183: 180 | B183: 谯佳澄 | C183: 男 | D183: 1152220101120 | E183: 沿河县 | F183: 10 | G183: 沿河县下属乡镇事业单位 | H183: 1001 | I183: 工作人员 | J183: 59.5 | K183: 35.7 | L183: 74.93 | M183: 29.97 | N183: 65.67 | O183: 15
A184: 181 | B184: 王保发 | C184: 男 | D184: 1152220101009 | E184: 沿河县 | F184: 10 | G184: 沿河县下属乡镇事业单位 | H184: 1001 | I184: 工作人员 | J184: 59.55 | K184: 35.73 | L184: 73.83 | M184: 29.53 | N184: 65.26 | O184: 16
A185: 182 | B185: 侯宏伟 | C185: 男 | D185: 1152220101422 | E185: 沿河县 | F185: 10 | G185: 沿河县下属乡镇事业单位 | H185: 1001 | I185: 工作人员 | J185: 59.6 | K185: 35.76 | L185: 73.50 | M185: 29.40 | N185: 65.16 | O185: 17
A186: 183 | B186: 田武 | C186: 男 | D186: 1152220100328 | E186: 沿河县 | F186: 10 | G186: 沿河县下属乡镇事业单位 | H186: 1001 | I186: 工作人员 | J186: 59.35 | K186: 35.61 | L186: 71.40 | M186: 28.56 | N186: 64.17 | O186: 18
A187: 184 | B187: 谭波 | C187: 男 | D187: 1152220100518 | E187: 沿河县 | F187: 10 | G187: 沿河县下属乡镇事业单位 | H187: 1001 | I187: 工作人员 | J187: 80.1 | K187: 48.06 | L187: 缺考 | M187: 0 | N187: 48.06 | Q187: 未被定兵
A188: 185 | B188: 何庆华 | C188: 男 | D188: 1152220100826 | E188: 沿河县 | F188: 10 | G188: 沿河县下属乡镇事业单位 | H188: 1001 | I188: 工作人员 | J188: 72.35 | K188: 43.41 | L188: 0 | M188: 0 | N188: 43.41 | Q188: 未被定兵,面试成绩不计入总成绩
A189: 186 | B189: 张智 | C189: 男 | D189: 1152220100809 | E189: 沿河县 | F189: 10 | G189: 沿河县下属乡镇事业单位 | H189: 1001 | I189: 工作人员 | J189: 70.95 | K189: 42.57 | L189: 缺考 | M189: 0 | N189: 42.57 | Q189: 未被定兵
A190: 187 | B190: 田茂松 | C190: 男 | D190: 1152220101808 | E190: 沿河县 | F190: 10 | G190: 沿河县下属乡镇事业单位 | H190: 1001 | I190: 工作人员 | J190: 69.5 | K190: 41.7 | L190: 缺考 | M190: 0 | N190: 41.70 | Q190: 未被定兵
A191: 188 | B191: 付中正 | C191: 男 | D191: 1152220101004 | E191: 沿河县 | F191: 10 | G191: 沿河县下属乡镇事业单位 | H191: 1001 | I191: 工作人员 | J191: 67.2 | K191: 40.32 | L191: 缺考 | M191: 0 | N191: 40.32 | Q191: 未被定兵
A192: 189 | B192: 余海峰 | C192: 男 | D192: 1152220101425 | E192: 沿河县 | F192: 10 | G192: 沿河县下属乡镇事业单位 | H192: 1001 | I192: 工作人员 | J192: 62.9 | K192: 37.74 | L192: 缺考 | M192: 0 | N192: 37.74 | Q192: 未被定兵
A193: 190 | B193: 肖文明 | C193: 男 | D193: 1152220101103 | E193: 沿河县 | F193: 10 | G193: 沿河县下属乡镇事业单位 | H193: 1001 | I193: 工作人员 | J193: 62.35 | K193: 37.41 | L193: 0 | M193: 0 | N193: 37.41 | Q193: 未被定兵,面试成绩不计入总成绩
A194: 191 | B194: 郭江东 | C194: 男 | D194: 1152220101029 | E194: 沿河县 | F194: 10 | G194: 沿河县下属乡镇事业单位 | H194: 1001 | I194: 工作人员 | J194: 62.05 | K194: 37.23 | L194: 缺考 | M194: 0 | N194: 37.23 | Q194: 未被定兵
A195: 192 | B195: 李亮 | C195: 男 | D195: 1152220100901 | E195: 沿河县 | F195: 10 | G195: 沿河县下属乡镇事业单位 | H195: 1001 | I195: 工作人员 | J195: 60.3 | K195: 36.18 | L195: 缺考 | M195: 0 | N195: 36.18 | Q195: 未被定兵
